{"text_format":"1","workbook":"xlsx","n_sheets":3,"sheets":["Formulario Inscripción","Base de datos","Listado de asistencia"],"not_rendered":{"charts":0,"images":2,"macros":1,"external_links":0,"defined_names":1,"comments":0,"pivot_tables":0},"unopened":[],"bounds":{"document_bytes":16777216,"sheet_cells":100000,"rows_first":2000,"rows_last":500,"rows_between":2000,"halvings":0,"cell_chars":16384,"cell_head_chars":4096},"cells_cut":0,"cells_raw":0,"read":"whole","date_system":"1900"}

{"sheet":"Formulario Inscripción","index":0,"n_rows":94,"n_cols":14,"rows_kept":94,"cut":false,"hidden":false,"merged":[[68,2,68,6],[21,2,21,4],[16,2,16,3],[9,4,9,7],[10,2,10,6],[62,2,62,6],[1,1,1,7],[2,2,3,2],[2,4,3,6],[7,2,7,4],[67,1,67,7],[24,2,24,3],[58,3,58,5],[60,2,60,6],[39,2,39,4],[48,2,48,6],[38,2,38,6],[33,2,33,4],[28,2,28,6],[29,2,29,4],[31,2,31,4],[25,4,26,4]]}
[]
[]
[null,null,"  Instituto Nacional Administración Pública"]
[]
[]
[null,null,"Evento Formativo:",null,null,null,"Fecha de Solicitud:"]
[]
[null,null,"Certificación Internacional en Gestión de Programas de Mentoring"]
[]
[]
[null,null," Datos Personales "]
[]
[null,null,"Nombres y Apellidos",null,"Género",null,"Cédula o No. de Pasaporte (Si es extranjero)"]
[null,null,null,null,null,null,null,null,null,null,null,null,null,"Femenino"]
[]
[]
[null,null,"Correo Electrónico Institucional",null,"Estado Civil",null,"Teléfono Residencial"]
[]
[]
[]
[null,null,"Correo Electrónico Personal",null,null,null,"Tel. Celular:"]
[]
[]
[]
[null,null,"Dirección Física"]
[]
[]
[]
[null,null,"Datos Laborales"]
[]
[null,null,"Nombre de la Institución: ",null,"Teléfono",null,"Departamento"]
[]
[]
[]
[null,null,"Cargo que desempeña: ",null,"Extensión",null,"Tiempo en el cargo"]
[]
[]
[]
[null,null,"Estudios Realizados"]
[]
[null,null,"Nivel Académico:",null,null,null,"Título de Grado (Ej. Lic. Dr. Ing.)"]
[]
[]
[]
[null,null,"Otros estudios realizados:",null,null,null,"Área o Profesión"]
[]
[]
[]
[null,null,"Datos de la Certificación"]
[]
[null,null,"Días de Docencia",null,"Cursó Inducción a la Administración Pública ?",null,"Código del Curso: (Sólo para llenar por la Institución)"]
[]
[]
[]
[null,null,"Tanda:",null,null,null,"Autorizado por: (Nombre Supervisor o Recursos Humanos)"]
[]
[]
[]
[]
[]
[null,null,"Porque quiere realizar la Certificación Internacional en Gestión de Programas de Mentoring"]
[]
[]
[null,null,null,null,null,null,null,null,null,null,null,null,null,"Si"]
[]
[null,null,"Firma del Estudiante",null,null,null,"División de Admisión y Registro"]
[]
[null,"Av. México esq. Leopoldo Navarro edif. Juan Pablo Duarte piso 14, Santo Domingo. Rep.Dom. Tel. 809-689-8955 ext. 276,Fax 809-686-0001"]
[]
[]
[null,null,null,null,null,null,null,null,null,null,null,null,null,"Si"]
[null,null,null,null,null,null,null,null,null,null,null,null,null,"No"]
[]
[null,null,null,null,null,null,null,null,null,null,null,null,null,"Casado(a)"]
[null,null,null,null,null,null,null,null,null,null,null,null,null,"Soltero(a)"]
[]
[]
[null,null,null,null,null,null,null,null,null,null,null,null,null,"Femenino"]
[null,null,null,null,null,null,null,null,null,null,null,null,null,"Masculino"]
[null,null,null,null,null,null,null,null,null,null,null,null,null,"Matutina"]
[null,null,null,null,null,null,null,null,null,null,null,null,null,"Vespertina"]
[null,null,null,null,null,null,null,null,null,null,null,null,null,"Nocturna"]
[null,null,null,null,null,null,null,null,null,null,null,null,null,"Bachiller"]
[null,null,null,null,null,null,null,null,null,null,null,null,null,"Técnico"]
[null,null,null,null,null,null,null,null,null,null,null,null,null,"Profesional"]
[null,null,null,null,null,null,null,null,null,null,null,null,null,"Maestría"]
[null,null,null,null,null,null,null,null,null,null,null,null,null,"Doctorado"]
[null,null,null,null,null,null,null,null,null,null,null,null,null,"Lic."]
[null,null,null,null,null,null,null,null,null,null,null,null,null,"Licda."]
[null,null,null,null,null,null,null,null,null,null,null,null,null,"Dr."]
[null,null,null,null,null,null,null,null,null,null,null,null,null,"Dra."]
[null,null,null,null,null,null,null,null,null,null,null,null,null,"Ing."]
[null,null,null,null,null,null,null,null,null,null,null,null,null,"PhD."]
[null,null,null,null,null,null,null,null,null,null,null,null,null,"Prof."]

{"sheet":"Base de datos","index":1,"n_rows":200,"n_cols":26,"rows_kept":200,"cut":false,"hidden":true,"merged":[]}
["Género","Código del curso","Días de docencia","Tanda","Nombres y Apellidos","Cédula","Estado Civil","Dirección","Evento Formativo","Fecha Solicitud","Nivel Académico","Abreviaturas","Área o Profesión","Otros estudios","Nombre de la Institución ","Departamento","Cargo que desempeña ","Tiempo en el cargo","Teléfono Institución","Ext.","Teléfono Personal","Teléfono Celular","Correo Electrónico Institucional","Correo Electrónico Personal","Autorizado por:","Cursó Inducción a la Administración Pública ?"]
[]
[]
[]
[]
[]
[]
[]
[]
[]
[]
[]
[]
[]
[]
[]
[]
[]
[]
[]
[]
[]
[]
[]
[]
[]
[]
[]
[]
[]
[]
[]
[]
[]
[]
[]
[]
[]
[]
[]
[]
[]
[]
[]
[]
[]
[]
[]
[]
[]
[]
[]
[]
[]
[]
[]
[]
[]
[]
[]
[]
[]
[]
[]
[]
[]
[]
[]
[]
[]
[]
[]
[]
[]
[]
[]
[]
[]
[]
[]
[]
[]
[]
[]
[]
[]
[]
[]
[]
[]
[]
[]
[]
[]
[]
[]
[]
[]
[]
[]
[]
[]
[]
[]
[]
[]
[]
[]
[]
[]
[]
[]
[]
[]
[]
[]
[]
[]
[]
[]
[]
[]
[]
[]
[]
[]
[]
[]
[]
[]
[]
[]
[]
[]
[]
[]
[]
[]
[]
[]
[]
[]
[]
[]
[]
[]
[]
[]
[]
[]
[]
[]
[]
[]
[]
[]
[]
[]
[]
[]
[]
[]
[]
[]
[]
[]
[]
[]
[]
[]
[]
[]
[]
[]
[]
[]
[]
[]
[]
[]
[]
[]
[]
[]
[]
[]
[]
[]
[]
[]
[]
[]
[]
[]
[]
[]
[]
[]
[]
[null,null,null,null,null,null,null,null,"Formador de Formadores en el Modelo de Gestión por Competencias."]

{"sheet":"Listado de asistencia","index":2,"n_rows":76,"n_cols":11,"rows_kept":76,"cut":false,"hidden":true,"merged":[[8,1,8,10],[9,2,9,10],[73,7,74,7],[75,2,76,4],[75,5,76,5],[73,2,74,2],[73,3,74,3],[73,4,74,4],[73,5,74,5],[73,6,74,6],[75,6,76,7],[71,2,72,2],[71,3,72,3],[71,4,72,4],[71,5,72,5],[71,6,71,7]]}
[]
[]
[]
[]
[]
[]
[]
[]
[null,"LISTADO DE ASISTENCIA"]
[null,null,"Curso: "]
[null,null,"Fecha: ",null,null,"Facilitador/a: "]
[null,null,"Total de Horas: ",null,null,"Horario: "]
[null,null,"Día/s: ",null,null,"Institución: "]
[null,null,"Salón: "]
[null,null,"Coordinador/a: "]
[]
[null,"No.","Nombre(s) y Apellidos","No. Cédula","cargo","Institución","Género",null,null,null,"Cal."]
[null,1,{"$f":"'Base de datos'!E3","v":0},{"$f":"'Base de datos'!F3","v":0},{"$f":"'Base de datos'!Q3","v":0},{"$f":"'Base de datos'!O3","v":0},{"$f":"'Base de datos'!A3","v":0}]
[null,2,{"$f":"'Base de datos'!E4","v":0},{"$f":"'Base de datos'!F4","v":0},{"$f":"'Base de datos'!Q4","v":0},{"$f":"'Base de datos'!O4","v":0},{"$f":"'Base de datos'!A4","v":0}]
[null,3,{"$f":"'Base de datos'!E5","v":0},{"$f":"'Base de datos'!F5","v":0},{"$f":"'Base de datos'!Q5","v":0},{"$f":"'Base de datos'!O5","v":0},{"$f":"'Base de datos'!A5","v":0}]
[null,4,{"$f":"'Base de datos'!E6","v":0},{"$f":"'Base de datos'!F6","v":0},{"$f":"'Base de datos'!Q6","v":0},{"$f":"'Base de datos'!O6","v":0},{"$f":"'Base de datos'!A6","v":0}]
[null,5,{"$f":"'Base de datos'!E7","v":0},{"$f":"'Base de datos'!F7","v":0},{"$f":"'Base de datos'!Q7","v":0},{"$f":"'Base de datos'!O7","v":0},{"$f":"'Base de datos'!A7","v":0}]
[null,6,{"$f":"'Base de datos'!E8","v":0},{"$f":"'Base de datos'!F8","v":0},{"$f":"'Base de datos'!Q8","v":0},{"$f":"'Base de datos'!O8","v":0},{"$f":"'Base de datos'!A8","v":0}]
[null,7,{"$f":"'Base de datos'!E9","v":0},{"$f":"'Base de datos'!F9","v":0},{"$f":"'Base de datos'!Q9","v":0},{"$f":"'Base de datos'!O9","v":0},{"$f":"'Base de datos'!A9","v":0}]
[null,8,{"$f":"'Base de datos'!E10","v":0},{"$f":"'Base de datos'!F10","v":0},{"$f":"'Base de datos'!Q10","v":0},{"$f":"'Base de datos'!O10","v":0},{"$f":"'Base de datos'!A10","v":0}]
[null,9,{"$f":"'Base de datos'!E11","v":0},{"$f":"'Base de datos'!F11","v":0},{"$f":"'Base de datos'!Q11","v":0},{"$f":"'Base de datos'!O11","v":0},{"$f":"'Base de datos'!A11","v":0}]
[null,10,{"$f":"'Base de datos'!E12","v":0},{"$f":"'Base de datos'!F12","v":0},{"$f":"'Base de datos'!Q12","v":0},{"$f":"'Base de datos'!O12","v":0},{"$f":"'Base de datos'!A12","v":0}]
[null,11,{"$f":"'Base de datos'!E13","v":0},{"$f":"'Base de datos'!F13","v":0},{"$f":"'Base de datos'!Q13","v":0},{"$f":"'Base de datos'!O13","v":0},{"$f":"'Base de datos'!A13","v":0}]
[null,12,{"$f":"'Base de datos'!E14","v":0},{"$f":"'Base de datos'!F14","v":0},{"$f":"'Base de datos'!Q14","v":0},{"$f":"'Base de datos'!O14","v":0},{"$f":"'Base de datos'!A14","v":0}]
[null,13,{"$f":"'Base de datos'!E15","v":0},{"$f":"'Base de datos'!F15","v":0},{"$f":"'Base de datos'!Q15","v":0},{"$f":"'Base de datos'!O15","v":0},{"$f":"'Base de datos'!A15","v":0}]
[null,14,{"$f":"'Base de datos'!E16","v":0},{"$f":"'Base de datos'!F16","v":0},{"$f":"'Base de datos'!Q16","v":0},{"$f":"'Base de datos'!O16","v":0},{"$f":"'Base de datos'!A16","v":0}]
[null,15,{"$f":"'Base de datos'!E17","v":0},{"$f":"'Base de datos'!F17","v":0},{"$f":"'Base de datos'!Q17","v":0},{"$f":"'Base de datos'!O17","v":0},{"$f":"'Base de datos'!A17","v":0}]
[null,16,{"$f":"'Base de datos'!E18","v":0},{"$f":"'Base de datos'!F18","v":0},{"$f":"'Base de datos'!Q18","v":0},{"$f":"'Base de datos'!O18","v":0},{"$f":"'Base de datos'!A18","v":0}]
[null,17,{"$f":"'Base de datos'!E19","v":0},{"$f":"'Base de datos'!F19","v":0},{"$f":"'Base de datos'!Q19","v":0},{"$f":"'Base de datos'!O19","v":0},{"$f":"'Base de datos'!A19","v":0}]
[null,18,{"$f":"'Base de datos'!E20","v":0},{"$f":"'Base de datos'!F20","v":0},{"$f":"'Base de datos'!Q20","v":0},{"$f":"'Base de datos'!O20","v":0},{"$f":"'Base de datos'!A20","v":0}]
[null,19,{"$f":"'Base de datos'!E21","v":0},{"$f":"'Base de datos'!F21","v":0},{"$f":"'Base de datos'!Q21","v":0},{"$f":"'Base de datos'!O21","v":0},{"$f":"'Base de datos'!A21","v":0}]
[null,20,{"$f":"'Base de datos'!E22","v":0},{"$f":"'Base de datos'!F22","v":0},{"$f":"'Base de datos'!Q22","v":0},{"$f":"'Base de datos'!O22","v":0},{"$f":"'Base de datos'!A22","v":0}]
[null,21,{"$f":"'Base de datos'!E23","v":0},{"$f":"'Base de datos'!F23","v":0},{"$f":"'Base de datos'!Q23","v":0},{"$f":"'Base de datos'!O23","v":0},{"$f":"'Base de datos'!A23","v":0}]
[null,22,{"$f":"'Base de datos'!E24","v":0},{"$f":"'Base de datos'!F24","v":0},{"$f":"'Base de datos'!Q24","v":0},{"$f":"'Base de datos'!O24","v":0},{"$f":"'Base de datos'!A24","v":0}]
[null,23,{"$f":"'Base de datos'!E25","v":0},{"$f":"'Base de datos'!F25","v":0},{"$f":"'Base de datos'!Q25","v":0},{"$f":"'Base de datos'!O25","v":0},{"$f":"'Base de datos'!A25","v":0}]
[null,24,{"$f":"'Base de datos'!E26","v":0},{"$f":"'Base de datos'!F26","v":0},{"$f":"'Base de datos'!Q26","v":0},{"$f":"'Base de datos'!O26","v":0},{"$f":"'Base de datos'!A26","v":0}]
[null,25,{"$f":"'Base de datos'!E27","v":0},{"$f":"'Base de datos'!F27","v":0},{"$f":"'Base de datos'!Q27","v":0},{"$f":"'Base de datos'!O27","v":0},{"$f":"'Base de datos'!A27","v":0}]
[null,26,{"$f":"'Base de datos'!E28","v":0},{"$f":"'Base de datos'!F28","v":0},{"$f":"'Base de datos'!Q28","v":0},{"$f":"'Base de datos'!O28","v":0},{"$f":"'Base de datos'!A28","v":0}]
[null,27,{"$f":"'Base de datos'!E29","v":0},{"$f":"'Base de datos'!F29","v":0},{"$f":"'Base de datos'!Q29","v":0},{"$f":"'Base de datos'!O29","v":0},{"$f":"'Base de datos'!A29","v":0}]
[null,28,{"$f":"'Base de datos'!E30","v":0},{"$f":"'Base de datos'!F30","v":0},{"$f":"'Base de datos'!Q30","v":0},{"$f":"'Base de datos'!O30","v":0},{"$f":"'Base de datos'!A30","v":0}]
[null,29,{"$f":"'Base de datos'!E31","v":0},{"$f":"'Base de datos'!F31","v":0},{"$f":"'Base de datos'!Q31","v":0},{"$f":"'Base de datos'!O31","v":0},{"$f":"'Base de datos'!A31","v":0}]
[null,30,{"$f":"'Base de datos'!E32","v":0},{"$f":"'Base de datos'!F32","v":0},{"$f":"'Base de datos'!Q32","v":0},{"$f":"'Base de datos'!O32","v":0},{"$f":"'Base de datos'!A32","v":0}]
[null,31,{"$f":"'Base de datos'!E33","v":0},{"$f":"'Base de datos'!F33","v":0},{"$f":"'Base de datos'!Q33","v":0},{"$f":"'Base de datos'!O33","v":0},{"$f":"'Base de datos'!A33","v":0}]
[null,32,{"$f":"'Base de datos'!E34","v":0},{"$f":"'Base de datos'!F34","v":0},{"$f":"'Base de datos'!Q34","v":0},{"$f":"'Base de datos'!O34","v":0},{"$f":"'Base de datos'!A34","v":0}]
[null,33,{"$f":"'Base de datos'!E35","v":0},{"$f":"'Base de datos'!F35","v":0},{"$f":"'Base de datos'!Q35","v":0},{"$f":"'Base de datos'!O35","v":0},{"$f":"'Base de datos'!A35","v":0}]
[null,34,{"$f":"'Base de datos'!E36","v":0},{"$f":"'Base de datos'!F36","v":0},{"$f":"'Base de datos'!Q36","v":0},{"$f":"'Base de datos'!O36","v":0},{"$f":"'Base de datos'!A36","v":0}]
[null,35,{"$f":"'Base de datos'!E37","v":0},{"$f":"'Base de datos'!F37","v":0},{"$f":"'Base de datos'!Q37","v":0},{"$f":"'Base de datos'!O37","v":0},{"$f":"'Base de datos'!A37","v":0}]
[null,36,{"$f":"'Base de datos'!E38","v":0},{"$f":"'Base de datos'!F38","v":0},{"$f":"'Base de datos'!Q38","v":0},{"$f":"'Base de datos'!O38","v":0},{"$f":"'Base de datos'!A38","v":0}]
[null,37,{"$f":"'Base de datos'!E39","v":0},{"$f":"'Base de datos'!F39","v":0},{"$f":"'Base de datos'!Q39","v":0},{"$f":"'Base de datos'!O39","v":0},{"$f":"'Base de datos'!A39","v":0}]
[null,38,{"$f":"'Base de datos'!E40","v":0},{"$f":"'Base de datos'!F40","v":0},{"$f":"'Base de datos'!Q40","v":0},{"$f":"'Base de datos'!O40","v":0},{"$f":"'Base de datos'!A40","v":0}]
[null,39,{"$f":"'Base de datos'!E41","v":0},{"$f":"'Base de datos'!F41","v":0},{"$f":"'Base de datos'!Q41","v":0},{"$f":"'Base de datos'!O41","v":0},{"$f":"'Base de datos'!A41","v":0}]
[null,40,{"$f":"'Base de datos'!E42","v":0},{"$f":"'Base de datos'!F42","v":0},{"$f":"'Base de datos'!Q42","v":0},{"$f":"'Base de datos'!O42","v":0},{"$f":"'Base de datos'!A42","v":0}]
[null,41,{"$f":"'Base de datos'!E43","v":0},{"$f":"'Base de datos'!F43","v":0},{"$f":"'Base de datos'!Q43","v":0},{"$f":"'Base de datos'!O43","v":0},{"$f":"'Base de datos'!A43","v":0}]
[null,42,{"$f":"'Base de datos'!E44","v":0},{"$f":"'Base de datos'!F44","v":0},{"$f":"'Base de datos'!Q44","v":0},{"$f":"'Base de datos'!O44","v":0},{"$f":"'Base de datos'!A44","v":0}]
[null,43,{"$f":"'Base de datos'!E45","v":0},{"$f":"'Base de datos'!F45","v":0},{"$f":"'Base de datos'!Q45","v":0},{"$f":"'Base de datos'!O45","v":0},{"$f":"'Base de datos'!A45","v":0}]
[null,44,{"$f":"'Base de datos'!E46","v":0},{"$f":"'Base de datos'!F46","v":0},{"$f":"'Base de datos'!Q46","v":0},{"$f":"'Base de datos'!O46","v":0},{"$f":"'Base de datos'!A46","v":0}]
[null,45,{"$f":"'Base de datos'!E47","v":0},{"$f":"'Base de datos'!F47","v":0},{"$f":"'Base de datos'!Q47","v":0},{"$f":"'Base de datos'!O47","v":0},{"$f":"'Base de datos'!A47","v":0}]
[null,46,{"$f":"'Base de datos'!E48","v":0},{"$f":"'Base de datos'!F48","v":0},{"$f":"'Base de datos'!Q48","v":0},{"$f":"'Base de datos'!O48","v":0},{"$f":"'Base de datos'!A48","v":0}]
[null,47,{"$f":"'Base de datos'!E49","v":0},{"$f":"'Base de datos'!F49","v":0},{"$f":"'Base de datos'!Q49","v":0},{"$f":"'Base de datos'!O49","v":0},{"$f":"'Base de datos'!A49","v":0}]
[null,48,{"$f":"'Base de datos'!E50","v":0},{"$f":"'Base de datos'!F50","v":0},{"$f":"'Base de datos'!Q50","v":0},{"$f":"'Base de datos'!O50","v":0},{"$f":"'Base de datos'!A50","v":0}]
[null,49,{"$f":"'Base de datos'!E51","v":0},{"$f":"'Base de datos'!F51","v":0},{"$f":"'Base de datos'!Q51","v":0},{"$f":"'Base de datos'!O51","v":0},{"$f":"'Base de datos'!A51","v":0}]
[null,50,{"$f":"'Base de datos'!E52","v":0},{"$f":"'Base de datos'!F52","v":0},{"$f":"'Base de datos'!Q52","v":0},{"$f":"'Base de datos'!O52","v":0},{"$f":"'Base de datos'!A52","v":0}]
[null,51,{"$f":"'Base de datos'!E53","v":0},{"$f":"'Base de datos'!F53","v":0},{"$f":"'Base de datos'!Q53","v":0},{"$f":"'Base de datos'!O53","v":0},{"$f":"'Base de datos'!A53","v":0}]
[null,52,{"$f":"'Base de datos'!E54","v":0},{"$f":"'Base de datos'!F54","v":0},{"$f":"'Base de datos'!Q54","v":0},{"$f":"'Base de datos'!O54","v":0},{"$f":"'Base de datos'!A54","v":0}]
[null,53,{"$f":"'Base de datos'!E55","v":0},{"$f":"'Base de datos'!F55","v":0},{"$f":"'Base de datos'!Q55","v":0},{"$f":"'Base de datos'!O55","v":0},{"$f":"'Base de datos'!A55","v":0}]
[]
[null,null,"Institución: ","Total Participantes","  Total  Hombres                       ","Total Mujeres","Total de Capcitados:"]
[null,null,null,null,null,null,"M","F"]
[null,null,"Capacitados por Sexo"]
[]
[null,null,null,null,null,"Total  Capacitados: ",{"$f":"+G74+H74","v":0}]